[Event "GER-ch Youth U12 2020"]
[Site "Willingen"]
[Date "2020.10.28"]
[Round "3.1"]
[White "von Mettenheim, Johannes"]
[Black "Sundui, Chinguun"]
[Result "1-0"]
[ECO "A40"]
[WhiteElo "1995"]
[BlackElo "1788"]
[Annotator "ChessBase"]
[PlyCount "65"]
[EventDate "2020.10.27"]
[EventType "swiss"]
[EventRounds "7"]
[EventCountry "GER"]
[SourceTitle "playchess.com"]
[Source "ChessBase"]
[SourceQuality "1"]
[TimeControl "40/5400+30:1800+30"]

1. d4 {[%emt 0:00:00]} Nf6 {[%emt 0:00:00]} 2. c4 {[%emt 0:00:00]} e6 {[%emt 0:00:00]} 3. g3 {[%emt 0:00:00]} Bb4+ {[%emt 0:00:06]} 4. Bd2 {[%emt 0:00:00]} Qe7 {[%emt 0:00:14]} 5. Bg2 {[%emt 0:01:18]} O-O {[%emt 0:01:26]} 6. Nf3 {[%emt 0:01:03]} Nc6 {[%emt 0:00:50]} 7. O-O {[%emt 0:00:39]} Bxd2 {[%emt 0:01:31]} 8. Nbxd2 {[%emt 0:00:36]} d6 {[%emt 0:00:16]} 9. Qc2 {[%emt 0:02:10]} e5 {[%emt 0:02:41]} 10. d5 {[%emt 0:06:09]} Nb8 {[%emt 0:02:13]} 11. Rfc1 {[%emt 0:01:35]} Nbd7 {[%emt 0:04:06]} 12. Nh4 {[%emt 0:02:51]} g6 {[%emt 0:01:56]} 13. b4 {[%emt 0:04:55]} b6 {[%emt 0:04:10]} 14. Nb3 {[%emt 0:04:40]} Bb7 {[%emt 0:10:31]} 15. e4 {[%emt 0:01:00]} c5 {[%emt 0:06:23]} 16. dxc6 {[%emt 0:07:04]} Bxc6 {[%emt 0:00:14]} 17. Qd3 {[%emt 0:02:26]} Rfd8 {[%emt 0:02:28]} 18. a4 {[%emt 0:03:42]} Nf8 {[%emt 0:03:00]} 19. Bf3 {[%emt 0:05:17]} Ne6 {[%emt 0:02:54]} 20. Qe3 {[%emt 0:01:16]} Rac8 {[%emt 0:07:58]} 21. a5 {[%emt 0:01:05]} Qb7 {[%emt 0:04:59]} 22. axb6 {[%emt 0:03:20]} axb6 {[%emt 0:02:57]} 23. c5 {[%emt 0:03:19]} dxc5 {[%emt 0:08:37]} 24. bxc5 {[%emt 0:00:42]} Nd4 {[%emt 0:02:56]} 25. cxb6 {[%emt 0:01:30]} Qxb6 {[%emt 0:00:54]} 26. Nxd4 {[%emt 0:01:19]} Rxd4 {[%emt 0:06:49]} 27. Nf5 {[%emt 0:02:13]} gxf5 {[%emt 0:01:29]} 28. Qg5+ {[%emt 0:00:21]} Kf8 {[%emt 0:00:25]} 29. Qxf6 {[%emt 0:00:09]} Rdd8 {[%emt 0:13:04]} 30. exf5 {[%emt 0:01:32]} Qb2 {[%emt 0:01:30]} 31. Bxc6 {[%emt 0:02:53]} Rd2 {[%emt 0:01:03]} 32. Qh6+ {[%emt 0:00:53]} Ke7 {[%emt 0:01:31]} 33. Ra7+ {[%emt 0:00:21]} 1-0

[Event "GER-ch Youth U12 2020"]
[Site "Willingen"]
[Date "2020.10.28"]
[Round "3.2"]
[White "Kempe, Caius Emilian"]
[Black "Hoppstädter, Daniel"]
[Result "1-0"]
[ECO "E83"]
[WhiteElo "1840"]
[BlackElo "1712"]
[Annotator "NA"]
[PlyCount "116"]
[EventDate "2020.10.27"]
[EventType "swiss"]
[EventRounds "7"]
[EventCountry "GER"]
[SourceTitle "playchess.com"]
[Source "ChessBase"]
[SourceQuality "1"]
[TimeControl "40/5400+30:1800+30"]

1. d4 {[%emt 0:00:00]} Nf6 {[%emt 0:00:00]} 2. c4 {[%emt 0:00:00]} g6 {[%emt 0:00:00]} 3. Nc3 {[%emt 0:00:00]} Bg7 {[%emt 0:00:00]} 4. e4 {[%emt 0:00:03]} d6 {[%emt 0:00:07]} 5. f3 {[%emt 0:00:07]} Nc6 {[%emt 0:00:44]} 6. Be3 {[%emt 0:00:30]} O-O {[%emt 0:00:37]} 7. Nge2 {[%emt 0:00:11]} e5 {[%emt 0:01:25]} 8. d5 {[%emt 0:00:14]} Ne7 {[%emt 0:00:22]} 9. Qd2 {[%emt 0:00:15]} Nd7 {[%emt 0:03:04]} 10. g4 {[%emt 0:01:23]} f5 {[%emt 0:01:03]} 11. gxf5 {[%emt 0:00:18]} gxf5 {[%emt 0:00:12]} 12. O-O-O {[%emt 0:00:37]} f4 {[%emt 0:02:26]} 13. Bf2 {[%emt 0:00:14]} Nf6 {[%emt 0:06:01]} 14. Kb1 {[%emt 0:01:35]} Ng6 {[%emt 0:01:02]} 15. Nc1 {[%emt 0:00:23]} Bd7 {[%emt 0:07:42]} 16. c5 {[%emt 0:03:15]} Rf7 {[%emt 0:06:13]} 17. Bc4 {[%emt 0:02:08]} Bh3 {[%emt 0:02:49]} 18. Rhg1 {[%emt 0:01:53]} Bf8 {[%emt 0:07:02]} 19. Nd3 {[%emt 0:00:49]} a6 {[%emt 0:03:25]} 20. Bb3 {[%emt 0:00:45]} b6 {[%emt 0:03:28]} 21. cxb6 {[%emt 0:01:22]} cxb6 {[%emt 0:00:29]} 22. Rc1 {[%emt 0:00:17]} Nd7 {[%emt 0:01:24]} 23. Nb4 {[%emt 0:03:25]} Nc5 {[%emt 0:01:14]} 24. Nc6 {[%emt 0:03:21]} Qc8 {[%emt 0:07:48]} 25. Na4 {[%emt 0:02:03]} Qb7 {[%emt 0:02:43]} (25... Rb7 $16 {was called for.} 26. Nxc5 bxc5) 26. Nxc5 {[%emt 0:06:25]} bxc5 {[%emt 0:00:13]} 27. Bxc5 {[%emt 0:00:32]} dxc5 {[%emt 0:00:22]} 28. Nxe5 {[%emt 0:00:09]} Rf6 {[%emt 0:05:20]} 29. Nxg6 {[%emt 0:02:05]} hxg6 {[%emt 0:00:42]} 30. e5 {[%emt 0:00:40]} Bf5+ {[%emt 0:01:40]} 31. Ka1 {[%emt 0:00:10]} Rb6 {[%emt 0:00:32]} 32. Qxf4 {[%emt 0:02:55]} Kh7 {[%emt 0:00:29]} 33. Qe3 {[%emt 0:04:46]} Rb8 {[%emt 0:01:12]} 34. d6 {[%emt 0:04:06]} Rxb3 {[%emt 0:06:55]} 35. Qxb3 {[%emt 0:01:59]} Qxb3 {[%emt 0:00:51]} 36. axb3 {[%emt 0:00:02]} Rb5 {[%emt 0:00:01]} 37. Rc4 Bg7 38. f4 {[%emt 0:09:46]} Rxb3 {[%emt 0:05:09]} 39. Rxc5 {[%emt 0:01:19]} Rb4 {[%emt 0:00:11]} 40. Ra5 {[%emt 0:00:14]} Rxf4 {[%emt 0:00:17]} 41. Re1 {[%emt 0:30:25]} Be6 {[%emt 0:30:36]} 42. Rxa6 {[%emt 0:00:31]} Bxe5 $2 {[%emt 0:02:13]} (42... Rf7 $16 {is a better defense.} 43. b4 Kh6) 43. Ra5 {[%emt 0:04:27]} Bxd6 {[%emt 0:02:52]} 44. Rxe6 {[%emt 0:00:12]} Rf1+ {[%emt 0:00:06]} 45. Ka2 {[%emt 0:00:08]} Bxh2 {[%emt 0:00:05]} 46. Rg5 {[%emt 0:00:21]} Rf2 {[%emt 0:01:23]} 47. Rgxg6 {[%emt 0:01:28]} Be5 {[%emt 0:00:57]} 48. Rh6+ {[%emt 0:00:58]} Kg7 {[%emt 0:00:04]} 49. Rxe5 {[%emt 0:00:20]} Kxh6 {[%emt 0:00:13]} 50. Ka3 $18 {[%emt 0:00:42]} Kg6 {[%emt 0:00:41]} 51. b4 {[%emt 0:00:11]} Kf6 {[%emt 0:00:24]} 52. Re3 {[%emt 0:00:33]} Rf1 {[%emt 0:00:24]} 53. Ka4 {[%emt 0:00:09]} Rh1 {[%emt 0:02:19]} 54. Ka5 {[%emt 0:00:17]} Rh8 {[%emt 0:01:00]} 55. b5 {[%emt 0:00:22]} Ra8+ {[%emt 0:00:16]} 56. Kb6 {[%emt 0:00:08]} Rb8+ {[%emt 0:00:06]} 57. Ka6 {[%emt 0:00:07]} Ra8+ {[%emt 0:00:10]} 58. Kb7 {[%emt 0:00:07]} Ra1 {[%emt 0:00:00]} 1-0

[Event "GER-ch Youth U12 2020"]
[Site "Willingen"]
[Date "2020.10.28"]
[Round "3.3"]
[White "Navarro Jahnke, Leo"]
[Black "Toth, Luca"]
[Result "1/2-1/2"]
[ECO "A45"]
[WhiteElo "1686"]
[BlackElo "1680"]
[Annotator "NA"]
[PlyCount "80"]
[EventDate "2020.10.27"]
[EventType "swiss"]
[EventRounds "7"]
[EventCountry "GER"]
[SourceTitle "playchess.com"]
[Source "ChessBase"]
[SourceQuality "1"]
[TimeControl "40/5400+30:1800+30"]

1. d4 {[%emt 0:00:00]} Nf6 {[%emt 0:00:00]} 2. Bf4 {[%emt 0:00:16]} g6 {[%emt 0:00:00]} 3. e3 {[%emt 0:00:12]} Bg7 {[%emt 0:00:00]} 4. c4 {[%emt 0:00:24]} O-O {[%emt 0:00:00]} 5. Nc3 {[%emt 0:00:50]} d6 {[%emt 0:00:26]} 6. h3 {[%emt 0:01:48]} Nbd7 {[%emt 0:01:11]} 7. Nf3 {[%emt 0:00:17]} Qe8 {[%emt 0:01:28]} 8. Be2 {[%emt 0:00:40]} e5 {[%emt 0:00:36]} 9. Bh2 {[%emt 0:00:23]} exd4 10. exd4 {[%emt 0:02:42]} Qe7 {[%emt 0:08:23]} 11. O-O {[%emt 0:01:34]} a6 {[%emt 0:04:21]} 12. Re1 {[%emt 0:04:44]} Re8 {[%emt 0:00:38]} 13. Bd3 {[%emt 0:05:30]} Qf8 {[%emt 0:00:16]} 14. Qc2 {[%emt 0:01:53]} b6 {[%emt 0:04:35]} 15. Rxe8 {[%emt 0:05:24]} Qxe8 {[%emt 0:00:13]} 16. Re1 {[%emt 0:00:25]} Qf8 {[%emt 0:00:16]} 17. Ne4 {[%emt 0:01:24]} Bb7 {[%emt 0:00:28]} 18. d5 {[%emt 0:01:17]} Nxe4 {[%emt 0:00:28]} 19. Rxe4 {[%emt 0:01:07]} Nc5 {[%emt 0:00:15]} 20. Re1 {[%emt 0:04:27]} Nxd3 {[%emt 0:00:48]} 21. Qxd3 {[%emt 0:01:08]} Bxb2 {[%emt 0:00:19]} 22. Nd4 {[%emt 0:01:52]} Bxd4 {[%emt 0:00:43]} 23. Qxd4 {[%emt 0:00:33]} Re8 {[%emt 0:00:24]} 24. Rxe8 {[%emt 0:02:15]} Qxe8 {[%emt 0:00:07]} 25. Bf4 {[%emt 0:00:08]} Qe7 {[%emt 0:01:49]} 26. Bd2 {[%emt 0:02:30]} Qe5 {[%emt 0:00:53]} 27. Qxe5 {[%emt 0:00:38]} dxe5 {[%emt 0:00:02]} 28. f3 {[%emt 0:00:51]} a5 {[%emt 0:01:05]} 29. Bg5 {[%emt 0:00:57]} Ba6 {[%emt 0:00:56]} 30. Bd8 {[%emt 0:00:50]} Bxc4 {[%emt 0:00:16]} 31. Bxc7 {[%emt 0:00:37]} Bxd5 {[%emt 0:00:46]} 32. Bxb6 {[%emt 0:00:20]} Bxa2 {[%emt 0:00:34]} 33. Bxa5 {[%emt 0:00:09]} f5 {[%emt 0:00:46]} 34. Bc3 {[%emt 0:01:40]} e4 {[%emt 0:02:59]} 35. fxe4 {[%emt 0:00:20]} fxe4 {[%emt 0:00:04]} 36. Kf2 {[%emt 0:00:13]} Bc4 {[%emt 0:00:25]} 37. g3 {[%emt 0:00:51]} Kf7 {[%emt 0:00:23]} 38. Be5 {[%emt 0:00:30]} Ke6 {[%emt 0:01:00]} 39. Bb8 {[%emt 0:00:32]} h6 {[%emt 0:01:17]} 40. h4 {[%emt 0:00:26]} h5 {[%emt 0:01:05]} 1/2-1/2

[Event "GER-ch Youth U12 2020"]
[Site "Willingen"]
[Date "2020.10.28"]
[Round "3.4"]
[White "Nitsche, Nikolai"]
[Black "Kieselbach, Jannik"]
[Result "1-0"]
[ECO "D02"]
[WhiteElo "1721"]
[BlackElo "1453"]
[Annotator "NA"]
[PlyCount "143"]
[EventDate "2020.10.27"]
[EventType "swiss"]
[EventRounds "7"]
[EventCountry "GER"]
[SourceTitle "playchess.com"]
[Source "ChessBase"]
[SourceQuality "1"]
[TimeControl "40/5400+30:1800+30"]

1. d4 {[%emt 0:00:11]} d5 {[%emt 0:00:00]} 2. Nf3 {[%emt 0:00:08]} Nf6 {[%emt 0:00:28]} 3. Bf4 {[%emt 0:00:26]} Bf5 {[%emt 0:00:34]} 4. e3 {[%emt 0:00:09]} e6 {[%emt 0:00:12]} 5. Bd3 {[%emt 0:00:24]} Bg6 {[%emt 0:00:44]} 6. c3 {[%emt 0:01:07]} Bd6 {[%emt 0:07:29]} 7. Ne5 {[%emt 0:01:12]} Nbd7 {[%emt 0:02:53]} 8. Nxg6 {[%emt 0:00:29]} hxg6 {[%emt 0:01:08]} 9. Bxd6 {[%emt 0:00:09]} cxd6 {[%emt 0:00:19]} 10. a4 {[%emt 0:03:15]} a6 {[%emt 0:05:49]} 11. a5 {[%emt 0:02:13]} Ne4 {[%emt 0:11:59]} 12. Bxe4 {[%emt 0:03:21]} dxe4 {[%emt 0:00:10]} 13. Nd2 {[%emt 0:00:07]} d5 {[%emt 0:01:00]} 14. c4 {[%emt 0:00:34]} Rc8 {[%emt 0:04:15]} 15. c5 {[%emt 0:00:47]} Nb8 {[%emt 0:01:44]} 16. b4 {[%emt 0:00:14]} Nc6 {[%emt 0:01:46]} 17. Qb3 {[%emt 0:35:21]} Na7 {[%emt 0:01:36]} 18. Nb1 {[%emt 0:00:37]} Nb5 {[%emt 0:03:19]} 19. Na3 {[%emt 0:01:21]} Qd7 {[%emt 0:01:41]} 20. Nxb5 {[%emt 0:00:31]} Qxb5 {[%emt 0:02:57]} 21. Qa4 {[%emt 0:00:05]} Qxa4 {[%emt 0:01:14]} 22. Rxa4 {[%emt 0:00:26]} Kd7 {[%emt 0:00:32]} 23. Kd2 {[%emt 0:01:22]} Kc6 {[%emt 0:00:57]} 24. Kc3 {[%emt 0:01:03]} Kb5 {[%emt 0:02:07]} 25. Kb3 {[%emt 0:00:07]} Rh4 {[%emt 0:00:41]} 26. Ra2 {[%emt 0:02:39]} Rch8 {[%emt 0:03:29]} 27. Rc2 {[%emt 0:00:37]} Kc6 {[%emt 0:00:36]} 28. h3 {[%emt 0:00:13]} g5 {[%emt 0:00:31]} 29. Rb1 {[%emt 0:00:08]} g4 {[%emt 0:06:46]} 30. hxg4 {[%emt 0:00:10]} Rxg4 {[%emt 0:01:31]} 31. g3 {[%emt 0:00:37]} Rg6 {[%emt 0:13:42]} 32. Ka4 {[%emt 0:01:05]} Rb8 {[%emt 0:04:58]} 33. b5+ {[%emt 0:00:33]} axb5+ {[%emt 0:03:19]} 34. Rxb5 {[%emt 0:00:13]} Ra8 {[%emt 0:00:57]} 35. Rb6+ {[%emt 0:00:34]} Kc7 {[%emt 0:00:36]} 36. c6 {[%emt 0:00:07]} bxc6 {[%emt 0:00:58]} 37. Rcxc6+ {[%emt 0:00:15]} Kd7 {[%emt 0:00:40]} 38. Kb5 {[%emt 0:01:08]} Rh6 {[%emt 0:00:57]} 39. Rb7+ {[%emt 0:02:38]} Ke8 {[%emt 0:01:27]} 40. a6 {[%emt 0:00:12]} Rh1 {[%emt 0:01:33]} 41. Kb6 {[%emt 0:30:22]} Kd8 {[%emt 0:32:32]} 42. Rd6+ {[%emt 0:00:09]} Ke8 {[%emt 0:00:29]} 43. a7 {[%emt 0:00:23]} Rc8 {[%emt 0:01:15]} 44. Rbd7 {[%emt 0:02:31]} Rb1+ {[%emt 0:05:45]} 45. Ka6 {[%emt 0:00:16]} Rb2 {[%emt 0:01:13]} 46. Rd8+ {[%emt 0:03:12]} Rxd8 {[%emt 0:00:09]} 47. Rxd8+ {[%emt 0:00:06]} Kxd8 {[%emt 0:00:12]} 48. a8=Q+ {[%emt 0:00:08]} Ke7 {[%emt 0:00:57]} 49. Qh8 {[%emt 0:01:48]} Rxf2 {[%emt 0:00:00]} 50. Qxg7 {[%emt 0:00:00]} Ra2+ {[%emt 0:00:00]} 51. Kb5 {[%emt 0:00:00]} Rb2+ {[%emt 0:00:00]} 52. Ka4 {[%emt 0:00:00]} Ra2+ {[%emt 0:00:00]} 53. Kb3 {[%emt 0:00:00]} Ra1 {[%emt 0:00:00]} 54. g4 {[%emt 0:00:00]} Rf1 {[%emt 0:00:00]} 55. Kc3 {[%emt 0:00:00]} Rf3 {[%emt 0:00:00]} 56. Kd2 {[%emt 0:00:00]} Ke8 {[%emt 0:00:00]} 57. Ke2 {[%emt 0:00:00]} Ke7 {[%emt 0:00:00]} 58. g5 {[%emt 0:00:00]} Ke8 {[%emt 0:00:00]} 59. Qh7 {[%emt 0:00:00]} Kf8 {[%emt 0:00:00]} 60. Qh6+ {[%emt 0:00:00]} Ke7 {[%emt 0:00:00]} 61. Qg7 {[%emt 0:00:00]} Ke8 {[%emt 0:00:00]} 62. Kd2 {[%emt 0:00:00]} Rf2+ {[%emt 0:03:08]} 63. Kc3 {[%emt 0:00:00]} Rf3 {[%emt 0:00:58]} 64. Kb4 {[%emt 0:00:00]} Rxe3 {[%emt 0:00:38]} 65. Kc5 {[%emt 0:00:00]} Ra3 {[%emt 0:00:31]} 66. Kd6 {[%emt 0:00:00]} Ra6+ {[%emt 0:00:26]} 67. Ke5 {[%emt 0:00:00]} Ra2 {[%emt 0:03:01]} 68. Qh8+ {[%emt 0:00:00]} Ke7 {[%emt 0:03:35]} 69. Qf6+ {[%emt 0:00:00]} Kf8 {[%emt 0:00:21]} 70. g6 {[%emt 0:00:00]} Ra7 {[%emt 0:00:41]} 71. Qh8+ {[%emt 0:00:00]} Ke7 {[%emt 0:00:09]} 72. Qh7 {[%emt 0:00:00]} 1-0

[Event "GER-ch Youth U12 2020"]
[Site "Willingen"]
[Date "2020.10.28"]
[Round "3.5"]
[White "Kiefhaber, Tobias"]
[Black "Payyappat, Sreyas"]
[Result "0-1"]
[ECO "D02"]
[WhiteElo "1542"]
[BlackElo "2144"]
[Annotator "NA RC"]
[PlyCount "64"]
[EventDate "2020.10.27"]
[EventType "swiss"]
[EventRounds "7"]
[EventCountry "GER"]
[SourceTitle "playchess.com"]
[Source "ChessBase"]
[SourceQuality "1"]
[TimeControl "40/5400+30:1800+30"]

1. d4 {[%emt 0:00:00]} Nf6 {[%emt 0:00:00]} 2. Nf3 {[%emt 0:00:00]} d5 {[%emt 0:00:00]} 3. Bf4 {[%emt 0:00:00]} c5 {[%emt 0:00:20]} 4. c3 {[%emt 0:00:00]} cxd4 {[%emt 0:01:48]} 5. cxd4 {[%emt 0:00:08]} Qb6 {[%emt 0:02:14]} 6. Qc2 {[%emt 0:00:43]} Nc6 {[%emt 0:01:02]} 7. a3 {[%emt 0:01:43]} Bf5 {[%emt 0:04:36]} 8. Qc1 {[%emt 0:06:46]} Na5 {[%emt 0:04:30]} 9. Nbd2 {[%emt 0:02:08]} (9. Nfd2 $17) 9... Rc8 {[%emt 0:01:05]} 10. Qd1 {[%emt 0:00:13]} Qxb2 {[%emt 0:27:40]} 11. e3 {[%emt 0:00:39]} (11. e4 {was worth a try.} Bxe4 12. Be2) 11... e6 {[%emt 0:17:47]} 12. Be2 {[%emt 0:00:11]} Bc2 {[%emt 0:01:55]} 13. Qc1 {[%emt 0:00:20]} Qxc1+ {[%emt 0:00:29]} 14. Rxc1 {[%emt 0:00:04]} Bxa3 {[%emt 0:00:16]} 15. Ra1 {[%emt 0:00:08]} Bb4 {[%emt 0:00:23]} 16. O-O {[%emt 0:00:24]} O-O {[%emt 0:01:18]} 17. Rfc1 {[%emt 0:01:32]} Ne4 {[%emt 0:01:21]} 18. Ra2 {[%emt 0:00:40]} Nc3 {[%emt 0:00:13] Double Attack} (18... Nxd2 $2 19. Raxc2 Rxc2 20. Rxc2 $19) (18... Bxd2 $2 19. Rcxc2 Bb4 20. Bf1 $19) 19. Rcxc2 {[%emt 0:00:22]} Nxe2+ {[%emt 0:01:13]} 20. Kf1 {[%emt 0:00:06]} Nxf4 {[%emt 0:03:22]} 21. exf4 $19 {[%emt 0:00:27]} Rxc2 {[%emt 0:01:22]} 22. Rxc2 {[%emt 0:00:04]} b5 {[%emt 0:00:21]} 23. Ne5 {[%emt 0:00:21]} Bxd2 {[%emt 0:02:29]} 24. Rxd2 {[%emt 0:00:13]} Nc4 {[%emt 0:00:08]} 25. Ra2 {[%emt 0:00:12]} Nxe5 {[%emt 0:00:15]} 26. fxe5 {[%emt 0:00:06]} Ra8 {[%emt 0:00:13]} 27. Ra5 {[%emt 0:00:11]} a6 {[%emt 0:00:11]} 28. Ke2 {[%emt 0:00:05]} Kf8 {[%emt 0:00:41]} 29. Kd3 {[%emt 0:00:06]} Ke7 {[%emt 0:00:12]} 30. f4 {[%emt 0:00:02]} Kd7 {[%emt 0:00:32]} 31. g4 {[%emt 0:00:04]} Kc6 {[%emt 0:00:08]} 32. f5 {[%emt 0:00:00]} Kb6 {[%emt 0:00:39]} 0-1

[Event "GER-ch Youth U12 2020"]
[Site "Willingen"]
[Date "2020.10.28"]
[Round "3.6"]
[White "Sauer, Tim"]
[Black "Zobel, Christian"]
[Result "1-0"]
[ECO "A36"]
[WhiteElo "1729"]
[BlackElo "1521"]
[Annotator "NA"]
[PlyCount "93"]
[EventDate "2020.10.27"]
[EventType "swiss"]
[EventRounds "7"]
[EventCountry "GER"]
[SourceTitle "playchess.com"]
[Source "ChessBase"]
[SourceQuality "1"]
[TimeControl "40/5400+30:1800+30"]

1. c4 {[%emt 0:00:00]} c5 {[%emt 0:00:00]} 2. Nc3 {[%emt 0:00:00]} Nc6 {[%emt 0:00:00]} 3. g3 {[%emt 0:00:00]} e6 {[%emt 0:00:00]} 4. Bg2 {[%emt 0:00:00]} Nf6 {[%emt 0:00:00]} 5. Nf3 {[%emt 0:00:35]} Be7 {[%emt 0:00:16]} 6. O-O {[%emt 0:00:08]} O-O {[%emt 0:00:09]} 7. d4 {[%emt 0:00:44]} cxd4 {[%emt 0:09:15]} 8. Nxd4 {[%emt 0:00:34]} Bb4 {[%emt 0:03:05]} 9. e4 {[%emt 0:04:34]} Bxc3 {[%emt 0:04:25]} 10. bxc3 {[%emt 0:00:19]} Na5 {[%emt 0:00:08]} 11. Qa4 {[%emt 0:01:48]} d6 {[%emt 0:06:17]} 12. Ba3 {[%emt 0:02:03]} Bd7 {[%emt 0:02:31]} 13. Qb4 {[%emt 0:01:07]} Rc8 {[%emt 0:00:26]} 14. Qxd6 {[%emt 0:00:25]} Nxc4 {[%emt 0:00:04]} 15. Qxf8+ {[%emt 0:01:15]} Qxf8 {[%emt 0:00:18]} 16. Bxf8 {[%emt 0:00:05]} Kxf8 {[%emt 0:00:08]} 17. Rfc1 {[%emt 0:01:34]} b6 {[%emt 0:08:15]} 18. f3 {[%emt 0:02:01]} Ne8 {[%emt 0:09:12]} 19. Kf2 {[%emt 0:01:41]} Ned6 {[%emt 0:04:36]} 20. Bf1 {[%emt 0:04:32]} e5 {[%emt 0:11:26]} 21. Nc2 {[%emt 0:09:50]} Nb2 {[%emt 0:08:02]} 22. Nb4 {[%emt 0:06:48]} Na4 {[%emt 0:03:37]} 23. Nd5 {[%emt 0:09:08]} Be6 {[%emt 0:04:10]} 24. c4 {[%emt 0:06:53]} f6 {[%emt 0:03:29]} 25. Rc2 {[%emt 0:02:52]} Bxd5 {[%emt 0:05:35]} 26. exd5 {[%emt 0:01:23]} Nc5 {[%emt 0:01:58]} 27. g4 {[%emt 0:02:50]} Kf7 {[%emt 0:01:37]} 28. Ke3 {[%emt 0:00:49]} Rc7 {[%emt 0:01:25]} 29. h4 {[%emt 0:11:29]} Re7 {[%emt 0:02:47]} 30. Bd3 {[%emt 0:06:40]} e4 {[%emt 0:04:33]} 31. fxe4 {[%emt 0:00:24]} Nxd3 {[%emt 0:01:27]} 32. Kxd3 {[%emt 0:01:07]} Rxe4 {[%emt 0:00:03]} 33. Rg1 {[%emt 0:00:29]} h5 {[%emt 0:02:15]} 34. gxh5 {[%emt 0:12:18]} Rxh4 {[%emt 0:00:22]} 35. c5 {[%emt 0:01:42]} bxc5 {[%emt 0:00:05]} 36. Rxc5 {[%emt 0:00:19]} Rxh5 {[%emt 0:00:15]} 37. Rc7+ {[%emt 0:01:18]} Kf8 {[%emt 0:00:13]} 38. Rgxg7 {[%emt 0:00:56]} Rxd5+ {[%emt 0:01:05]} 39. Kc2 {[%emt 0:00:22]} Rh5 {[%emt 0:02:30]} 40. Rh7 {[%emt 0:02:06]} Rxh7 {[%emt 0:01:09]} 41. Rxh7 {[%emt 0:30:32]} Nf7 {[%emt 0:30:02]} 42. Rh4 {[%emt 0:00:23]} Kg7 {[%emt 0:00:11]} 43. Ra4 {[%emt 0:00:29]} Kg6 {[%emt 0:00:12]} 44. Rxa7 {[%emt 0:00:09]} f5 {[%emt 0:00:03]} 45. Kd2 {[%emt 0:00:30]} f4 {[%emt 0:00:10]} 46. a4 {[%emt 0:01:03]} f3 {[%emt 0:00:20]} 47. Rxf7 {[%emt 0:01:55]} 1-0

[Event "GER-ch Youth U12 2020"]
[Site "Willingen"]
[Date "2020.10.28"]
[Round "3.7"]
[White "Eichhorn, Valentin"]
[Black "Udelnov, Valentin"]
[Result "0-1"]
[ECO "A45"]
[WhiteElo "1545"]
[BlackElo "1691"]
[Annotator "NA"]
[PlyCount "60"]
[EventDate "2020.10.27"]
[EventType "swiss"]
[EventRounds "7"]
[EventCountry "GER"]
[SourceTitle "playchess.com"]
[Source "ChessBase"]
[SourceQuality "1"]
[TimeControl "40/5400+30:1800+30"]

1. d4 {[%emt 0:00:00]} Nf6 {[%emt 0:00:25]} 2. Bg5 {[%emt 0:00:00]} g6 {[%emt 0:00:54]} 3. Bxf6 {[%emt 0:00:22]} exf6 {[%emt 0:00:05]} 4. Nf3 {[%emt 0:00:24]} Bg7 {[%emt 0:00:11]} 5. e3 {[%emt 0:00:08]} O-O {[%emt 0:00:30]} 6. c4 {[%emt 0:00:18]} c5 {[%emt 0:01:45]} 7. d5 {[%emt 0:03:31]} f5 {[%emt 0:00:43]} 8. Nc3 {[%emt 0:00:48]} d6 {[%emt 0:00:45]} 9. Be2 {[%emt 0:00:40]} Nd7 {[%emt 0:01:46]} 10. Qc2 {[%emt 0:01:44]} Nf6 {[%emt 0:01:29]} 11. h3 {[%emt 0:01:20]} Qa5 {[%emt 0:02:09]} 12. Nd2 {[%emt 0:02:06]} Ne4 {[%emt 0:01:36]} 13. Ndxe4 {[%emt 0:03:21]} fxe4 {[%emt 0:00:25]} 14. O-O {[%emt 0:00:21]} f5 {[%emt 0:00:50]} 15. Rfc1 {[%emt 0:04:37]} Qd8 {[%emt 0:04:42]} 16. Rab1 {[%emt 0:03:05]} a5 {[%emt 0:01:16]} 17. Qd2 {[%emt 0:03:41]} Be5 {[%emt 0:03:25]} 18. g3 {[%emt 0:08:31]} g5 {[%emt 0:01:39]} 19. f4 {[%emt 0:08:20]} exf3 {[%emt 0:01:16]} 20. Bxf3 {[%emt 0:02:44]} g4 {[%emt 0:01:50]} 21. hxg4 {[%emt 0:04:33]} fxg4 {[%emt 0:00:05]} 22. Be4 {[%emt 0:00:13]} Bxg3 {[%emt 0:01:53]} 23. Qg2 {[%emt 0:02:38]} Bf2+ {[%emt 0:01:38]} 24. Qxf2 {[%emt 0:02:17]} Rxf2 {[%emt 0:00:09]} 25. Kxf2 {[%emt 0:00:02]} Qg5 {[%emt 0:07:13]} 26. Rg1 {[%emt 0:06:51]} Bf5 {[%emt 0:02:00]} 27. Bxf5 {[%emt 0:07:22]} Qxf5+ {[%emt 0:00:08]} 28. Ke2 {[%emt 0:00:01]} Qc2+ {[%emt 0:00:55]} 29. Ke1 {[%emt 0:00:25]} h5 {[%emt 0:02:31]} 30. Rh1 {[%emt 0:01:27]} Re8 {[%emt 0:01:08]} 0-1

[Event "GER-ch Youth U12 2020"]
[Site "Willingen"]
[Date "2020.10.28"]
[Round "3.8"]
[White "Sommer, Justus"]
[Black "Winkler, Yonathan"]
[Result "1/2-1/2"]
[ECO "C47"]
[WhiteElo "1845"]
[BlackElo "1680"]
[Annotator "NA"]
[PlyCount "72"]
[EventDate "2020.10.27"]
[EventType "swiss"]
[EventRounds "7"]
[EventCountry "GER"]
[SourceTitle "playchess.com"]
[Source "ChessBase"]
[SourceQuality "1"]
[TimeControl "40/5400+30:1800+30"]

1. e4 {[%emt 0:00:09]} e5 {[%emt 0:00:00]} 2. Nf3 {[%emt 0:00:18]} Nf6 {[%emt 0:00:03]} 3. Nc3 {[%emt 0:00:11]} Nc6 {[%emt 0:00:04]} 4. d4 {[%emt 0:00:13]} exd4 {[%emt 0:00:14]} 5. Nxd4 {[%emt 0:00:10]} Bb4 {[%emt 0:00:05]} 6. Nxc6 {[%emt 0:00:15]} bxc6 {[%emt 0:00:05]} 7. Bd3 {[%emt 0:00:12]} d5 {[%emt 0:00:25]} 8. exd5 {[%emt 0:00:36]} O-O {[%emt 0:00:13]} 9. O-O {[%emt 0:00:37]} cxd5 {[%emt 0:00:09]} 10. Bg5 {[%emt 0:00:26]} Bb7 {[%emt 0:01:15]} 11. Qf3 {[%emt 0:03:22]} Be7 {[%emt 0:02:19]} 12. Rfe1 {[%emt 0:03:49]} h6 {[%emt 0:01:45]} 13. Bh4 {[%emt 0:02:05]} Re8 {[%emt 0:00:29]} 14. Bxf6 {[%emt 0:05:06]} Bxf6 {[%emt 0:01:25]} 15. Rxe8+ {[%emt 0:00:48]} Qxe8 {[%emt 0:00:06]} 16. Nxd5 {[%emt 0:05:21]} Bxd5 {[%emt 0:00:33]} 17. Qxd5 {[%emt 0:00:45]} Bxb2 {[%emt 0:00:07]} 18. Rb1 {[%emt 0:00:24]} Rb8 {[%emt 0:08:17]} 19. Bc4 {[%emt 0:06:41]} c6 {[%emt 0:02:24]} 20. Qf3 {[%emt 0:05:52]} Rb6 {[%emt 0:06:49]} 21. Rd1 {[%emt 0:03:49]} Bf6 {[%emt 0:01:27]} 22. Bd3 {[%emt 0:01:28]} Qe5 {[%emt 0:01:56]} 23. g3 {[%emt 0:02:22]} g6 {[%emt 0:01:49]} 24. Be4 {[%emt 0:03:48]} Rb2 {[%emt 0:04:34]} 25. a3 {[%emt 0:05:26]} Qe6 {[%emt 0:03:11]} 26. Qd3 {[%emt 0:05:54]} Kg7 {[%emt 0:05:40]} 27. Rd2 {[%emt 0:04:40]} Rb8 {[%emt 0:06:26]} 28. Re2 {[%emt 0:02:53]} Qh3 {[%emt 0:04:34]} 29. Re1 {[%emt 0:01:56]} Rd8 {[%emt 0:01:19]} 30. Qe3 {[%emt 0:02:43]} Bd4 {[%emt 0:02:06]} 31. Qf3 {[%emt 0:01:03]} Rd6 {[%emt 0:01:40]} 32. Rf1 {[%emt 0:03:59]} Rf6 {[%emt 0:03:57]} 33. Qd3 {[%emt 0:02:03]} Rd6 {[%emt 0:00:29]} 34. Bg2 {[%emt 0:00:52]} Qh5 {[%emt 0:01:41]} 35. Kh1 {[%emt 0:01:31]} Qc5 $17 {[%emt 0:02:56]} 36. Rd1 {[%emt 0:09:57]} Be5 {[%emt 0:01:00]} 1/2-1/2